fUST/lending_fUST_20241220
["ID","MTS","AMOUNT","RATE_DAILY","PERIOD"]
[346082283,1734694269322,-19666.42,0.00024383,6]
[346082284,1734694269332,-150.12,0.00024383,6]
[346082285,1734694269342,-559.45,0.00024383,6]
[346082286,1734694269352,-1311.68,0.00024383,6]
[346082287,1734694269361,-500.0,0.00024383,6]
[346082288,1734694269372,-566.79,0.00024383,6]
[346082289,1734694269383,-745.45,0.00024383,6]
[346082290,1734694269394,-704.77,0.00024383,6]
[346082291,1734694269612,-596.95,0.00024383,6]
[346082292,1734694269623,-500.0,0.00024383,6]
[346082293,1734694269632,-500.0,0.00024383,6]
[346082294,1734694269643,-500.0,0.00024383,6]
[346082295,1734694269652,-500.0,0.00024383,6]
[346082296,1734694269663,-3063.18,0.00024383,6]
[346082297,1734694269678,-690.48,0.00024383,6]
[346082298,1734694269688,-500.0,0.00024383,6]
[346082299,1734694269699,-500.0,0.00024383,6]
[346082300,1734694269710,-500.0,0.00024383,6]
[346082301,1734694269722,-618.24,0.00024383,6]
[346082302,1734694269733,-596.24,0.00024383,6]
[346082303,1734694269744,-1042.28,0.00024383,6]
[346082304,1734694269755,-669.3,0.00024383,6]
[346082305,1734694269766,-6968.41,0.00024383,6]
[346082306,1734694269777,-1173.52,0.00024383,6]
[346082307,1734694269790,-1358.68,0.00024383,6]
[346082308,1734694269801,-5013.94,0.00024383,2]
[346082309,1734694269813,-4843.52,0.00024383,6]
[346082310,1734694269825,-500.0,0.00024383,6]
[346082311,1734694269836,-1197.34,0.00024383,6]
[346082312,1734694269846,-2776.19,0.00024383,6]
[346082313,1734694269856,-3958.45,0.00024383,6]
[346082314,1734694269867,-500.0,0.00024383,6]
[346082315,1734694269876,-3361.23,0.00024383,6]
[346082316,1734694269886,-2543.32,0.00024383,6]
[346082317,1734694269897,-6271.99,0.00024383,6]
[346082318,1734694269906,-3140.07,0.00024383,6]
[346082319,1734694269922,-1253.7,0.00024383,6]
[346082320,1734694269932,-500.0,0.00024383,6]
[346082321,1734694269943,-674.87,0.00024383,6]
[346082322,1734694269953,-1029.79,0.00024383,6]
[346082323,1734694269963,-701.21,0.00024383,6]
[346082324,1734694269973,-500.03,0.00024383,6]
[346082325,1734694269983,-531.11188786,0.00024383,6]
[346082326,1734694269994,-500.0,0.00024383,6]
[346082327,1734694270004,-1676.26,0.00024383,6]
[346082328,1734694270014,-517.63,0.00024383,6]
[346082329,1734694270023,-2596.31,0.00024383,6]
[346082330,1734694270034,-890.04,0.00024383,6]
[346082331,1734694270043,-1816.44,0.00024383,6]
[346082332,1734694270053,-500.0,0.00024383,6]
[346082333,1734694270063,-151.0,0.00024383,7]
[346082334,1734694270072,-567.12,0.00024383,6]
[346082335,1734694270081,-2920.79,0.00024383,6]
[346082336,1734694270091,-1271.47,0.00024383,6]
[346082337,1734694270101,-873.66,0.00024383,6]
[346082338,1734694270111,-799.21,0.00024383,6]
[346082339,1734694270120,-604.44,0.00024383,6]
[346082340,1734694270130,-464.7381809,0.00024387,2]
[346082341,1734694270140,-184.0,0.00024402,2]
[346082342,1734694270151,-1000.0,0.00024467,25]
[346082343,1734694270162,-1710.38150493,0.00024475,3]
[346082344,1734694270177,-1000.0,0.00024494,2]
[346082345,1734694270187,-5000.0,0.000245,2]
[346082346,1734694270198,-3000.0,0.000245,5]
[346082347,1734694270210,-7939.90429162,0.000245,2]
[346082348,1734694270221,-128057.96603542,0.000245,2]
[346082349,1734694270233,-1454.72584913,0.000245,2]
[346082350,1734694270244,-1000.0,0.00024552,2]
[346082351,1734694270258,-400.0,0.000246,7]
[346082352,1734694270270,-2000.0,0.000246,2]
[346082353,1734694270282,-2000.0,0.000246,2]
[346082354,1734694270293,-563.93281642,0.00024605,2]
[346082355,1734694270304,-464.7381809,0.00024605,2]
[346082356,1734694270315,-821.70706402,0.00024634,30]
[346082357,1734694270326,-150.12,0.00024657,6]
[346082358,1734694270336,-500.0,0.00024657,6]
[346082359,1734694270347,-500.0,0.00024657,6]
[346082360,1734694270358,-500.0,0.00024657,6]
[346082361,1734694270370,-561.26,0.00024657,6]
[346082362,1734694270380,-500.0,0.00024657,6]
[346082363,1734694270390,-241.92017423,0.00024657,6]
[346082364,1734694270400,-500.0,0.00024657,6]
[346082365,1734694270410,-500.0,0.00024657,6]
[346082366,1734694270426,-500.0,0.00024657,6]
[346082367,1734694270437,-500.0,0.00024657,6]
[346082368,1734694270447,-955.43,0.00024657,6]
[346082369,1734694270458,-500.0,0.00024657,6]
[346082370,1734694270468,-500.0,0.00024657,6]
[346082371,1734694270479,-204.43481183,0.00024657,6]
[346082372,1734694270490,-500.0,0.00024657,6]
[346082373,1734694270501,-500.0,0.00024657,6]
[346082374,1734694270511,-500.0,0.00024657,6]
[346082375,1734694270522,-500.0,0.00024657,6]
[346082376,1734694270533,-500.0,0.00024657,6]
[346082377,1734694270544,-1314.43,0.00024657,6]
[346082378,1734694270555,-500.0,0.00024657,6]
[346082379,1734694270565,-417.58761788,0.00024657,6]
[346082380,1734694270576,-582.5,0.00024657,6]
[346082381,1734694270587,-867.18,0.00024657,6]
[346082382,1734694270598,-500.0,0.00024657,6]
[346082383,1734694270610,-500.0,0.00024657,6]
[346082384,1734694270621,-500.0,0.00024657,6]
[346082385,1734694270633,-500.0,0.00024657,6]
[346082386,1734694270644,-500.0,0.00024657,6]
[346082387,1734694270654,-500.0,0.00024657,6]
[346082388,1734694270669,-500.0,0.00024657,6]
[346082389,1734694270680,-500.0,0.00024657,6]
[346082390,1734694270691,-576.5,0.00024657,6]
[346082391,1734694270702,-500.0,0.00024657,6]
[346082392,1734694270713,-1212.24,0.00024657,6]
[346082393,1734694270724,-709.1,0.00024657,6]
[346082394,1734694270736,-507.75,0.00024657,6]
[346082395,1734694270748,-500.0,0.00024657,6]
[346082396,1734694270760,-500.0,0.00024657,6]
[346082397,1734694270771,-500.0,0.00024657,6]
[346082398,1734694270784,-455.70709484,0.00024657,6]
[346082399,1734694270796,-500.0,0.00024657,6]
[346082400,1734694270995,-500.0,0.00024657,6]
[346082401,1734694271007,-500.0,0.00024657,6]
[346082402,1734694271018,-871.2,0.00024657,6]
[346082403,1734694271029,-500.0,0.00024657,6]
[346082404,1734694271040,-706.49,0.00024657,6]
[346082405,1734694271050,-500.0,0.00024657,6]
[346082406,1734694271061,-500.0,0.00024657,6]
[346082407,1734694271071,-500.0,0.00024657,6]
[346082408,1734694271082,-500.0,0.00024657,6]
[346082409,1734694271091,-719.46,0.00024657,6]
[346082410,1734694271102,-1463.71,0.00024657,6]
[346082411,1734694271112,-500.0,0.00024657,6]
[346082412,1734694271121,-1230.09,0.00024657,6]
[346082413,1734694271131,-1189.93,0.00024657,6]
[346082414,1734694271140,-579.49,0.00024657,6]
[346082415,1734694271150,-754.73,0.00024657,6]
[346082416,1734694271159,-500.0,0.00024657,6]
[346082417,1734694271174,-786.11,0.00024657,6]
[346082418,1734694271183,-500.0,0.00024657,6]
[346082419,1734694271193,-500.0,0.00024657,6]
[346082420,1734694271202,-849.68,0.00024657,6]
[346082421,1734694271212,-513.51,0.00024657,6]
[346082422,1734694271221,-500.0,0.00024657,6]
[346082423,1734694271231,-500.0,0.00024657,6]
[346082424,1734694271240,-1646.32,0.00024657,6]
[346082425,1734694271250,-705.68,0.00024657,6]
[346082426,1734694271259,-415.03645689,0.00024657,6]
[346082427,1734694271269,-500.0,0.00024657,6]
[346082428,1734694271279,-500.0,0.00024657,6]
[346082429,1734694271289,-500.0,0.00024657,6]
[346082430,1734694271299,-500.0,0.00024657,6]
[346082431,1734694271309,-500.0,0.00024657,6]
[346082432,1734694271319,-500.0,0.00024657,6]
[346082433,1734694271328,-215.77947724,0.00024657,6]
[346082434,1734694271338,-1545.88,0.00024657,6]
[346082435,1734694271348,-233.85,0.00024657,6]
[346082436,1734694271358,-857.37,0.00024657,6]
[346082437,1734694271368,-542.12,0.00024657,6]
[346082438,1734694271377,-500.0,0.00024657,6]
[346082439,1734694271388,-500.0,0.00024657,6]
[346082440,1734694271397,-500.0,0.00024657,6]
[346082441,1734694271407,-500.0,0.00024657,6]
[346082442,1734694271420,-500.0,0.00024657,6]
[346082443,1734694271430,-500.0,0.00024657,6]
[346082444,1734694271440,-500.0,0.00024657,6]
[346082445,1734694271450,-1524.16,0.00024657,6]
[346082446,1734694271459,-500.0,0.00024657,6]
[346082447,1734694271469,-1969.15,0.00024657,6]
[346082448,1734694271479,-500.0,0.00024657,6]
[346082449,1734694271489,-666.77,0.00024657,6]
[346082450,1734694271499,-1678.97,0.00024657,6]
[346082451,1734694271509,-1221.42,0.00024657,6]
[346082452,1734694271519,-919.53,0.00024657,6]
[346082453,1734694271529,-500.0,0.00024657,6]
[346082454,1734694271539,-1954.57,0.00024657,6]
[346082455,1734694271549,-530.11,0.00024657,6]
[346082456,1734694271558,-1371.09,0.00024657,6]
[346082457,1734694271568,-570.76,0.00024657,6]
[346082458,1734694271578,-500.0,0.00024657,6]
[346082459,1734694271588,-647.7,0.00024657,6]
[346082460,1734694271598,-659.11,0.00024657,6]
[346082461,1734694271608,-1365.85,0.00024657,6]
[346082462,1734694271618,-997.07,0.00024657,6]
[346082463,1734694271627,-1861.38,0.00024657,6]
[346082464,1734694271637,-500.0,0.00024657,6]
[346082465,1734694271647,-500.0,0.00024657,6]
[346082466,1734694271657,-544.52,0.00024657,6]
[346082467,1734694271671,-500.0,0.00024657,6]
[346082468,1734694271681,-667.64,0.00024657,6]
[346082469,1734694271691,-541.67,0.00024657,6]
[346082470,1734694271701,-532.84,0.00024657,6]
[346082471,1734694271713,-3000.0,0.00024657,30]
[346082472,1734694271723,-1142.47,0.00024657,6]
[346082473,1734694271734,-500.0,0.00024657,6]
[346082474,1734694271745,-3000.0,0.00024657,30]
[346082475,1734694271756,-3000.0,0.00024657,30]
[346082476,1734694271766,-3000.0,0.00024657,30]
[346082477,1734694271777,-3000.0,0.00024657,30]
[346082478,1734694271788,-3000.0,0.00024657,30]
[346082479,1734694271799,-3000.0,0.00024657,30]
[346082480,1734694271811,-3000.0,0.00024657,30]
[346082481,1734694271821,-3000.0,0.00024657,30]
[346082482,1734694271831,-3000.0,0.00024657,30]
[346082483,1734694271844,-3000.0,0.00024657,30]
[346082484,1734694271854,-551.66,0.00024657,6]
[346082485,1734694271864,-1761.45,0.00024657,6]
[346082486,1734694271874,-500.0,0.00024657,6]
[346082487,1734694271883,-500.0,0.00024657,6]
[346082488,1734694271894,-500.0,0.00024657,6]
[346082489,1734694271903,-607.22,0.00024657,11]
[346082490,1734694271914,-151.0,0.00024657,7]
[346082491,1734694271928,-507.56,0.00024657,6]
[346082492,1734694271938,-500.0,0.00024657,6]
[346082493,1734694271948,-675.29,0.00024657,6]
[346082494,1734694271958,-515.72,0.00024657,6]
[346082495,1734694271968,-571.63,0.00024657,6]
[346082496,1734694271977,-500.0,0.00024657,6]
[346082497,1734694271986,-500.0,0.00024657,6]
[346082498,1734694271996,-558.46,0.00024657,6]
[346082499,1734694272005,-761.12,0.00024657,6]
[346082500,1734694272015,-2681.03,0.00024657,6]
[346082501,1734694272025,-1074.72,0.00024657,6]
[346082502,1734694272034,-500.0,0.00024657,6]
[346082503,1734694272044,-2768.83,0.00024657,2]
[346082504,1734694272054,-942.86,0.00024657,6]
[346082505,1734694272064,-990.71,0.00024657,6]
[346082506,1734694272074,-1154.59,0.00024657,6]
[346082507,1734694272083,-500.0,0.00024657,6]
[346082508,1734694272093,-593.74,0.00024657,6]
[346082509,1734694272103,-879.16,0.00024657,6]
[346082510,1734694272112,-1799.03,0.00024657,6]
[346082511,1734694272121,-500.0,0.00024657,6]
[346082512,1734694272131,-151.0,0.00024657,7]
[346082513,1734694272140,-4685.48,0.00024657,6]
[346082514,1734694272150,-908.05,0.00024657,2]
[346082515,1734694272160,-2938.15,0.00024657,6]
[346082516,1734694272173,-500.0,0.00024657,6]
[346082517,1734694272182,-1116.74,0.00024657,6]
[346082518,1734694272193,-500.0,0.00024657,6]
[346082519,1734694272214,-500.0,0.00024657,6]
[346082520,1734694272229,-2325.47,0.00024657,6]
[346082521,1734694272239,-558.81,0.00024657,6]
[346082522,1734694272248,-1646.13,0.00024657,6]
[346082523,1734694272258,-11962.96,0.00024657,6]
[346082524,1734694272268,-500.0,0.00024657,6]
[346082525,1734694272278,-500.0,0.00024657,6]
[346082526,1734694272288,-47981.61,0.00024657,6]
[346082527,1734694272299,-500.0,0.00024657,6]
[346082528,1734694272310,-500.0,0.00024657,6]
[346082529,1734694272326,-500.0,0.00024657,6]
[346082530,1734694272335,-500.0,0.00024657,6]
[346082531,1734694272346,-856.87,0.00024657,6]
[346082532,1734694272356,-500.0,0.00024657,6]
[346082533,1734694272367,-500.0,0.00024657,6]
[346082534,1734694272376,-500.0,0.00024657,6]
[346082535,1734694272385,-13094.31,0.00024657,6]
[346082536,1734694272396,-1008.27,0.00024657,6]
[346082537,1734694272405,-500.0,0.00024657,6]
[346082538,1734694272418,-500.0,0.00024657,6]
[346082539,1734694272429,-500.0,0.00024657,6]
[346082540,1734694272438,-500.0,0.00024657,6]
[346082541,1734694272448,-586.91,0.00024657,6]
[346082542,1734694272457,-599.08,0.00024657,6]
[346082543,1734694272467,-3250.6,0.00024657,6]
[346082544,1734694272476,-500.0,0.00024657,6]
[346082545,1734694272485,-1929.64,0.00024657,6]
[346082546,1734694272495,-500.0,0.00024657,6]
[346082547,1734694272504,-6353.3,0.00024657,6]
[346082548,1734694272514,-3613.08,0.00024657,6]
[346082549,1734694272523,-699.51,0.00024657,6]
[346082550,1734694272533,-11618.82,0.00024657,6]
[346082551,1734694272542,-500.0,0.00024657,6]
[346082552,1734694272552,-522.89,0.00024657,6]
[346082553,1734694272561,-500.0,0.00024657,6]
[346082554,1734694272570,-890.01,0.00024657,6]
[346082555,1734694272580,-3149.43,0.00024657,6]
[346082556,1734694272589,-500.0,0.00024657,6]
[346082557,1734694272599,-1610.1,0.00024657,6]
[346082558,1734694272609,-2966.71,0.00024657,6]
[346082559,1734694272618,-622.97,0.00024657,6]
[346082560,1734694272627,-500.0,0.00024657,6]
[346082561,1734694272637,-19666.42,0.00024657,6]
[346082562,1734694272649,-2492.926892,0.00024657,7]
[346082563,1734694272658,-559.45,0.00024657,6]
[346082564,1734694272672,-2492.926892,0.00024657,7]
[346082565,1734694272682,-297.81215,0.00024657,7]
[346082566,1734694272691,-1311.68,0.00024657,6]
[346082567,1734694272701,-603.64661248,0.00024657,6]
[346082568,1734694272711,-297.81215,0.00024657,7]
[346082569,1734694272721,-566.79,0.00024657,6]
[346082570,1734694272731,-745.45,0.00024657,6]
[346082571,1734694272742,-704.77,0.00024657,6]
[346082572,1734694272754,-596.95,0.00024657,6]
[346082573,1734694272764,-500.0,0.00024657,6]
[346082574,1734694272778,-500.0,0.00024657,6]
[346082575,1734694272793,-500.0,0.00024657,6]
[346082576,1734694272805,-151.0,0.00024657,7]
[346082577,1734694272816,-500.0,0.00024657,6]
[346082578,1734694272826,-3063.18,0.00024657,6]
[346082579,1734694272835,-151.0,0.00024657,7]
[346082580,1734694272846,-690.48,0.00024657,6]
[346082581,1734694272855,-500.0,0.00024657,6]
[346082582,1734694272865,-500.0,0.00024657,6]
[346082583,1734694272875,-618.24,0.00024657,6]
[346082584,1734694272886,-596.24,0.00024657,6]
[346082585,1734694272896,-1042.28,0.00024657,6]
[346082586,1734694272905,-669.3,0.00024657,6]
[346082587,1734694272919,-6968.41,0.00024657,6]
[346082588,1734694272929,-2792.87,0.00024657,6]
[346082589,1734694272948,-1173.52,0.00024657,6]
[346082590,1734694272959,-1358.68,0.00024657,6]
[346082591,1734694272969,-5013.94,0.00024657,2]
[346082592,1734694272979,-4843.52,0.00024657,6]
[346082593,1734694272989,-500.0,0.00024657,6]
[346082594,1734694272999,-1197.34,0.00024657,6]
[346082595,1734694273009,-2776.19,0.00024657,6]
[346082596,1734694273019,-3958.45,0.00024657,6]
[346082597,1734694273029,-500.0,0.00024657,6]
[346082598,1734694273038,-3361.23,0.00024657,6]
[346082599,1734694273048,-2543.32,0.00024657,6]
[346082600,1734694273057,-6271.99,0.00024657,6]
[346082601,1734694273067,-3140.07,0.00024657,6]
[346082602,1734694273077,-1253.7,0.00024657,6]
[346082603,1734694273087,-500.0,0.00024657,6]
[346082604,1734694273097,-674.87,0.00024657,6]
[346082605,1734694273108,-1029.79,0.00024657,6]
[346082606,1734694273118,-701.21,0.00024657,6]
[346082607,1734694273128,-500.03,0.00024657,6]
[346082608,1734694273138,-500.0,0.00024657,6]
[346082609,1734694273148,-1676.26,0.00024657,6]
[346082610,1734694273158,-517.63,0.00024657,6]
[346082611,1734694273170,-2596.31,0.00024657,6]
[346082612,1734694273180,-890.04,0.00024657,6]
[346082613,1734694273190,-1816.44,0.00024657,6]
[346082614,1734694273199,-500.0,0.00024657,6]
[346082615,1734694273208,-567.12,0.00024657,6]
[346082616,1734694273218,-2920.79,0.00024657,6]
[346082617,1734694273227,-1271.47,0.00024657,6]
[346082618,1734694273237,-873.66,0.00024657,6]
[346082619,1734694273247,-799.21,0.00024657,6]
[346082620,1734694273256,-604.44,0.00024657,6]
[346082621,1734694273265,-380.0,0.00024658,2]
[346082622,1734694273275,-200.0,0.00024658,2]
[346082623,1734694273284,-957.3878982,0.00024658,4]
[346082624,1734694273294,-165.238558,0.0002466,7]
[346082625,1734694273304,-165.238558,0.0002466,7]
[346082626,1734694273313,-505.066982,0.0002466,7]
[346082627,1734694273325,-505.066982,0.0002466,7]
[346082628,1734694273334,-151.0,0.0002466,7]
[346082629,1734694273344,-4450.19244248,0.0002466,7]
[346082630,1734694273353,-4450.19244248,0.0002466,7]
[346082631,1734694273363,-4450.19244248,0.0002466,7]
[346082632,1734694273372,-4450.19244248,0.0002466,7]
[346082633,1734694273382,-4450.19244248,0.0002466,7]
[346082634,1734694273392,-4450.19244248,0.0002466,7]
[346082635,1734694273402,-4450.19244248,0.0002466,7]
[346082636,1734694273411,-4450.19244248,0.0002466,7]
[346082637,1734694273425,-4450.19244248,0.0002466,7]
[346082638,1734694273537,-4450.19244248,0.0002466,7]
[346082639,1734694273547,-4450.19244248,0.0002466,7]
[346082640,1734694273557,-4450.19244248,0.0002466,7]
[346082641,1734694273566,-4450.19244248,0.0002466,7]
[346082642,1734694273575,-4450.19244248,0.0002466,7]
[346082643,1734694273585,-4450.19244248,0.0002466,7]
[346082644,1734694273594,-4450.19244248,0.0002466,7]
[346082645,1734694273604,-4450.19244248,0.0002466,7]
[346082646,1734694273613,-4450.19244248,0.0002466,7]
[346082647,1734694273623,-4450.19244248,0.0002466,7]
[346082648,1734694273632,-4450.19,0.0002466,7]
[346082649,1734694273642,-6675.28866372,0.0002466,7]
[346082650,1734694273652,-6675.28866372,0.0002466,7]
[346082651,1734694273661,-6675.28866372,0.0002466,7]
[346082652,1734694273674,-6675.28866372,0.0002466,7]
[346082653,1734694273684,-6675.28866372,0.0002466,7]
[346082654,1734694273694,-6675.28866372,0.0002466,7]
[346082655,1734694273704,-6675.28866372,0.0002466,7]
[346082656,1734694273713,-6675.28866372,0.0002466,7]
[346082657,1734694273723,-6675.28866372,0.0002466,7]
[346082658,1734694273733,-6675.28866372,0.0002466,7]
[346082659,1734694273742,-6675.28866372,0.0002466,7]
[346082660,1734694273752,-6675.28866372,0.0002466,7]
[346082661,1734694273761,-6675.28866372,0.0002466,7]
[346082662,1734694273770,-6675.28866372,0.0002466,7]
[346082663,1734694273782,-6675.28866372,0.0002466,7]
[346082664,1734694273793,-6675.28866372,0.0002466,7]
[346082665,1734694273808,-6675.28866372,0.0002466,7]
[346082666,1734694273829,-6675.28866372,0.0002466,7]
[346082667,1734694273839,-6675.28866372,0.0002466,7]
[346082668,1734694273848,-6675.28,0.0002466,7]
[346082669,1734694273859,-1976.4706129,0.0002466,7]
[346082670,1734694273868,-1976.4706129,0.0002466,7]
[346082671,1734694273877,-1976.4706129,0.0002466,7]
[346082672,1734694273886,-1976.4706129,0.0002466,7]
[346082673,1734694273896,-1976.4706129,0.0002466,7]
[346082674,1734694273905,-1976.4706129,0.0002466,7]
[346082675,1734694273916,-1976.4706129,0.0002466,7]
[346082676,1734694273926,-1976.4706129,0.0002466,7]
[346082677,1734694273935,-1976.4706129,0.0002466,7]
[346082678,1734694273945,-1976.4706129,0.0002466,7]
[346082679,1734694273954,-1976.4706129,0.0002466,7]
[346082680,1734694273964,-1976.4706129,0.0002466,7]
[346082681,1734694273974,-1976.4706129,0.0002466,7]
[346082682,1734694273984,-1976.4706129,0.0002466,7]
[346082683,1734694273993,-1976.4706129,0.0002466,7]
[346082684,1734694274003,-1976.4706129,0.0002466,7]
[346082685,1734694274013,-1976.4706129,0.0002466,7]
[346082686,1734694274023,-1976.4706129,0.0002466,7]
[346082687,1734694274033,-1976.4706129,0.0002466,7]
[346082688,1734694274042,-1976.47,0.0002466,7]
[346082689,1734694274052,-2964.70591935,0.0002466,7]
[346082690,1734694274061,-2964.70591935,0.0002466,7]
[346082691,1734694274070,-2964.70591935,0.0002466,7]
[346082692,1734694274080,-2964.70591935,0.0002466,7]
[346082693,1734694274090,-2964.70591935,0.0002466,7]
[346082694,1734694274099,-2964.70591935,0.0002466,7]
[346082695,1734694274109,-2964.70591935,0.0002466,7]
[346082696,1734694274118,-2964.70591935,0.0002466,7]
[346082697,1734694274127,-2964.70591935,0.0002466,7]
[346082698,1734694274137,-2964.70591935,0.0002466,7]
[346082699,1734694274146,-2964.70591935,0.0002466,7]
[346082700,1734694274156,-2964.70591935,0.0002466,7]
[346082701,1734694274167,-2964.70591935,0.0002466,7]
[346082702,1734694274176,-2964.70591935,0.0002466,7]
[346082703,1734694274186,-2964.70591935,0.0002466,7]
[346082704,1734694274195,-2964.70591935,0.0002466,7]
[346082705,1734694274205,-2964.70591935,0.0002466,7]
[346082706,1734694274215,-2964.70591935,0.0002466,7]
[346082707,1734694274224,-2964.70591935,0.0002466,7]
[346082708,1734694274234,-2964.7,0.0002466,7]
[346082709,1734694274243,-152.38310741,0.0002466,7]
[346082710,1734694274253,-152.38310741,0.0002466,7]
[346082711,1734694274263,-152.38310741,0.0002466,7]
[346082712,1734694274272,-152.38310741,0.0002466,7]
[346082713,1734694274282,-152.38310741,0.0002466,7]
[346082714,1734694274296,-152.38310741,0.0002466,7]
[346082715,1734694274305,-152.38310741,0.0002466,7]
[346082716,1734694274315,-152.38310741,0.0002466,7]
[346082717,1734694274325,-152.38,0.0002466,7]
[346082718,1734694274335,-158.24399615,0.0002466,7]
[346082719,1734694274345,-158.24399615,0.0002466,7]
[346082720,1734694274355,-158.24399615,0.0002466,7]
[346082721,1734694274365,-158.24399615,0.0002466,7]
[346082722,1734694274375,-158.24399615,0.0002466,7]
[346082723,1734694274384,-158.24399615,0.0002466,7]
[346082724,1734694274394,-158.24399615,0.0002466,7]
[346082725,1734694274405,-158.24399615,0.0002466,7]
[346082726,1734694274414,-158.24399615,0.0002466,7]
[346082727,1734694274428,-158.24399615,0.0002466,7]
[346082728,1734694274438,-158.24399615,0.0002466,7]
[346082729,1734694274448,-158.24399615,0.0002466,7]
[346082730,1734694274457,-158.24,0.0002466,7]
[346082731,1734694274467,-189452.0,0.00024666,7]
[346082732,1734694274476,-151.0,0.00024666,7]
[346082733,1734694274485,-10305.20533882,0.00024682,2]
[346082734,1734694274494,-4523.72541657,0.000247,7]
[346082735,1734694274504,-23510.17,0.000247,2]
[346082736,1734694274514,-3574.46,0.000247,14]
[346082737,1734694274523,-1148.1808119,0.00024705,2]
[346082738,1734694274532,-434098.19805121,0.00024705,10]
[346082739,1734694274772,-6972519.08989509,0.00024705,10]
[346082740,1734694274783,-447.49999998,0.00024705,10]
[346082741,1734694274794,-419.6000028,0.00024705,10]
[346082742,1734694274806,-4738.82163081,0.00024705,10]
[346082743,1734694274817,-31509.678323,0.00024705,10]
[346082744,1734694274838,-519.57113696,0.00024705,10]
[346082745,1734694274854,-9516.0,0.00024705,10]
[346082746,1734694274865,-9374.8,0.00024705,10]
[346082747,1734694274876,-299.14977055,0.00024705,10]
[346082748,1734694275208,-500.0,0.00022173,2]
[346082749,1734694275218,-718.92,0.00022191,6]
[346082750,1734694275228,-533.0,0.0002221,2]
[346082751,1734694275237,-718.92,0.00022465,6]
[346082752,1734694275247,-1000.0,0.00022721,2]
[346082753,1734694275257,-718.92,0.00022739,6]
[346082754,1734694275267,-718.92,0.00023013,6]
[346082755,1734694275277,-718.92,0.00023287,6]
[346082756,1734694275287,-718.92,0.00023561,6]
[346082757,1734694275297,-1500.0,0.00023722,2]
[346082758,1734694275307,-718.92,0.00023835,6]
[346082759,1734694275317,-718.92,0.00024109,6]
[346082760,1734694275327,-718.92,0.00024383,6]
[346082761,1734694275340,-718.92,0.00024657,6]
[346082762,1734694275349,-6148.200523,0.00024705,10]
[346082763,1734694275362,-31836.92,0.00024705,10]
[346082764,1734694275374,-9436.3,0.00024705,10]
[346082765,1734694275386,-2812.2,0.00024705,10]
[346082766,1734694275399,-249.75125,0.00024705,10]
[346082767,1734694275463,-106198.54336151,0.00024705,10]
[346082768,1734694275473,-1373159.6214684,0.00024705,10]
[346082769,1734694275485,-564000.0,0.00024705,10]
[346082770,1734694275497,-456.00000005,0.00024705,10]
[346082774,1734694369604,-1305.0,0.00024789,30]
[346082775,1734694369643,-3000.0,0.00024931,30]
[346082776,1734694369685,-1000.5,0.00025,31]
[346082777,1734694369718,-1000.5,0.00025,31]
[346082778,1734694369752,-448.3,0.00025,31]
[346082779,1734694369785,-1023.8,0.00025,31]
[346082780,1734694369820,-500.5,0.00025,31]
[346082781,1734694369854,-295.1,0.00025,31]
[346082782,1734694369888,-1000.5,0.00025,31]
[346082783,1734694369921,-1053.5,0.00025,31]
[346082784,1734694369954,-55000.0,0.00025,30]
[346082785,1734694369987,-3026.55966574,0.00025,100]